Cogmind - Beta 13 @@@ ROGUE MODE // 2024.04.05 @ 00:20:03 Player: SovietPaperclip Result: Self-destructed Performance ------------- Evolutions (1) 500 Regions Visited (3) 600 Robots Destroyed (22) 110 Value Destroyed (295) 295 Prototype IDs (0) 0 Alien Tech Used (0) 0 Bonus (-10) -10 TOTAL SCORE: 1495 Bonus ------- Friendly Fire -10 Cogmind --------- Core Integrity 400/400 Matter 300/300 Energy 100/100 System Corruption 0% Temperature Cool (0) Movement Treading (160) Location -9/Materials Parts ------- > --- POWER (1) -------- (None) > --- PROPULSION (4) --- Light Treads Light Treads > --- UTILITY (2) ------ Large Storage Unit > --- WEAPON (2) ------- Assault Rifle > --- INVENTORY (15) --- Ion Engine Flexi-carbon Leg Medium Storage Unit Structural Scanner Hacking Suite Peak State ------------ > --- POWER ------------ Ion Engine > --- PROPULSION ------- Light Treads Light Treads > --- UTILITY ---------- Large Storage Unit Targeting Computer > --- WEAPON ----------- Medium Laser Light Assault Rifle > --- INVENTORY -------- Ion Engine Medium Storage Unit Structural Scanner Hacking Suite Medium Laser Assault Rifle Assault Rifle Grenade Launcher [Rating: 8] Favorites ----------- Power Ion Engine Engine Ion Engine Propulsion Light Treads Treads Light Treads Utility Large Storage Unit Storage Large Storage Unit Processor Targeting Computer Weapon Beam Cannon Energy Gun Medium Laser Energy Cannon Beam Cannon Ballistic Gun Light Assault Rifle Launcher Grenade Launcher Build | -11 -10 -10 -9 ------- Run | Yrd Mat Min Mat Slots Evolved 2 | . . . 2 Power . | . . . . Propulsion 2 | . . . 2 Utility . | . . . . Weapon . | . . . . Parts Attached 15 | 6 3 6 . Power 1 | 1 . . . Engine 1 | 1 . . . Core . | . . . . Reactor . | . . . . Propulsion 4 | 2 . 2 . Treads 4 | 2 . 2 . Leg . | . . . . Wheel . | . . . . Hover . | . . . . Flight . | . . . . Utility 3 | 1 2 . . Device . | . . . . Storage 2 | 1 1 . . Processor 1 | . 1 . . Hackware . | . . . . Protection . | . . . . Artifact . | . . . . Weapon 7 | 2 1 4 . Energy Gun 2 | 1 . 1 . Energy Cannon 1 | . 1 . . Ballistic Gun 3 | 1 . 2 . Ballistic Cannon . | . . . . Launcher 1 | . . 1 . Special Weapon . | . . . . Impact Weapon . | . . . . Slashing Weapon . | . . . . Piercing Weapon . | . . . . Special Melee Weapon . | . . . . Unidentified Prototypes . | . . . . Parts Lost 8 | . . 8 . Power 1 | . . 1 . Propulsion 2 | . . 2 . Utility 1 | . . 1 . Weapon 4 | . . 4 . Highest Loss Streak 4 | . . 4 . To Critical Strikes . | . . . . Average Slot Usage (%) 84 | . 87 82 44 Engine 10 | . 14 8 . Treads 24 | . 28 22 22 Storage 13 | . 14 14 11 Processor 6 | . 2 8 . Energy Gun 4 | . 12 . . Energy Cannon 8 | . 1 13 . Ballistic Gun 8 | . 14 5 11 Launcher 5 | . . 8 . Naked Turns . | . . . . Heaviest Build 31 | 13 29 31 22 Greatest Support 40 | 40 40 40 40 Greatest Overweight (x) 1 | . . 1 . Average Overweight (x) . | . . . . Largest Inventory Capacity 15 | 8 15 15 15 Average Capacity 14 | 6 14 15 15 Most Carried 10 | 4 10 10 5 Average Carried 7 | 1 5 8 5 Final Capacity 15 | 8 15 15 15 Final Carried 10 | 2 10 5 5 Class Distribution -------------------- 100% | Mutant Dominant Class ---------------- Mutant | -10/Materials Mutant | -10/Mines Mutant | -9/Materials Resources | -11 -10 -10 -9 ----------- Run | Yrd Mat Min Mat Matter Collected 531 | 229 110 192 . Remotely . | . . . . Salvage Created 699 | . 325 374 . Parts 42 | . 28 14 . Haulers Intercepted 1 | . 1 . . Recyclers Shooed 1 | . 1 . . Parts Field Recycled . | . . . . Retrieved Matter . | . . . . Parts Self-Destructed . | . . . . Prevented . | . . . . Kills | -11 -10 -10 -9 ------- Run | Yrd Mat Min Mat Combat Hostiles Destroyed 28 | . 5 23 . Guns 7 | . 5 2 . Cannons 5 | . . 5 . AOE 16 | . . 16 . Classes Destroyed 9 | . 7 2 . Builder 2 | . 2 . . Hauler 1 | . 1 . . Recycler 4 | . 1 3 . Operator 2 | . 2 . . Watcher 1 | . 1 . . Swarmer 9 | . 3 6 . Grunt 2 | . 2 . . Demolisher 1 | . . 1 . Assembled 16 | . . 16 . Best Kill Streak 16 | . 5 16 . Combat Bots Only 16 | . 3 16 . Max Kills in Single Turn 5 | . 1 5 . Gunslinging . | . . . . Exploded 4 | . . 4 . Melee . | . . . . Uniques/NPCs Destroyed . | . . . . Combat | -11 -10 -10 -9 -------- Run | Yrd Mat Min Mat Hostile Shots Fired 71 | . 29 42 . Missed 13 | . 7 6 . Damage Taken 1037 | . 201 836 . Core 204 | . 45 159 . Absorbed by Shields . | . . . . Core Remaining (%) 59 | 100 . 18 . Volleys Fired 81 | . 49 32 . Largest 2 | . 2 2 . Hottest 90 | . 80 90 . Shots Fired 144 | . 96 48 . Gun 106 | . 92 14 . Cannon 27 | . 4 23 . Launcher 11 | . . 11 . Special . | . . . . Kinetic 60 | . 49 11 . Thermal 73 | . 47 26 . Explosive 11 | . . 11 . Electromagnetic . | . . . . Robot Hit Streak 7 | . 7 3 . Robot Miss Streak 5 | . 5 3 . Penetration Max . | . . . . Secondary Targets 1 | . 1 . . Max Gunslinging Chain 1 | . 1 . . Shots Hit Robots 77 | . 54 23 . Core Hits 70 | . 21 49 . Critical Kills . | . . . . Critical Parts Destroyed . | . . . . Critical Strikes 3 | . 2 1 . Burn 3 | . 2 1 . Melee Attacks . | . . . . Impact . | . . . . Slashing . | . . . . Piercing . | . . . . Sneak Attacks . | . . . . Combat Hostiles . | . . . . Follow-up Attacks . | . . . . Damage Inflicted 1875 | . 587 1288 . Guns 672 | . 553 119 . Cannons 245 | . 34 211 . Explosions 958 | . . 958 . Melee . | . . . . Ramming . | . . . . Kinetic 334 | . 227 107 . Thermal 583 | . 360 223 . Explosive 958 | . . 958 . Electromagnetic . | . . . . Impact . | . . . . Slashing . | . . . . Piercing . | . . . . Highest Corruption 8 | . 2 8 . Average Corruption 4 | . 1 4 . Corruption Purged . | . . . . Corruption Blocked . | . . . . Effects 17 | . . 17 . Message Errors 7 | . . 7 . Matter Fused 4 | . . 4 . Heat Flow Errors 2 | . . 2 . Energy Discharges 2 | . . 2 . Data Loss (minor) 1 | . . 1 . Misfires 1 | . . 1 . Overload Shots . | . . . . Overflow Damage 36 | . . 36 . Projectiles . | . . . . Explosions 36 | . . 36 . Melee . | . . . . Knockbacks . | . . . . Impact . | . . . . Kinetic . | . . . . Secondary . | . . . . Self-Inflicted Damage 106 | . . 106 . Shots 4 | . . 4 . Rammed . | . . . . Targets Rammed . | . . . . Kicked . | . . . . Crushed . | . . . . Highest Temperature 340 | . 170 340 . Average Temperature 85 | . 62 120 . Received Heat Transfer 106 | . 66 40 . Effects 1 | . . 1 . Energy Bleed 1 | . . 1 . Siege Activations . | . . . . Robots Corrupted . | . . . . Combat Hostiles . | . . . . Parts Fried . | . . . . Impact Corruptions . | . . . . Robots Melted . | . . . . Combat Hostiles . | . . . . Parts Melted 2 | . 2 . . Heat Transferred 1739 | . 1184 555 . Parts Sabotaged . | . . . . Parts Stolen . | . . . . Parts Stripped . | . . . . Power Chain Reactions . | . . . . Alert | -11 -10 -10 -9 ------- Run | Yrd Mat Min Mat Peak Influence 193 | . 108 193 7 Initial 24 | . . 24 7 Average 56 | . 40 71 7 Maximum Alert Level . | . . . . Low Security (%) 100 | 100 100 100 100 Level 1 . | . . . . Level 2 . | . . . . Level 3 . | . . . . Level 4 . | . . . . Level 5 . | . . . . High Security . | . . . . Max Security . | . . . . Squads Dispatched 3 | . 2 . 1 Investigation 1 | . . . 1 Extermination . | . . . . Reinforcement 2 | . 2 . . Assault . | . . . . Garrison . | . . . . Intercept . | . . . . Searches Triggered . | . . . . Construction Impeded . | . . . . Haulers Reinforced . | . . . . Active Scanning Responses . | . . . . Cargo Convoy Interrupts . | . . . . Stealth | -11 -10 -10 -9 --------- Run | Yrd Mat Min Mat Distress Signals 1 | . 1 . . Communications Jammed . | . . . . Distress Signals . | . . . . Times Spotted 37 | . 9 28 . Peak Tracking Total 12 | . 3 12 . Tactical Retreats 2 | . 1 1 . Traps | -11 -10 -10 -9 ------- Run | Yrd Mat Min Mat Traps Triggered 2 | . 2 . . Indirectly . | . . . . Trap Hack Attempts . | . . . . Triggered . | . . . . Disarmed . | . . . . Reprogrammed 1 | . 1 . . Reused . | . . . . Traps Extracted . | . . . . Installed . | . . . . Triggered . | . . . . Machines | -11 -10 -10 -9 ---------- Run | Yrd Mat Min Mat Machines Disabled . | . . . . Max in Single Turn . | . . . . Machines Repaired . | . . . . Machines Dismantled . | . . . . Machines Sabotaged . | . . . . Overloaded Fab Kills . | . . . . Hacking | -11 -10 -10 -9 --------- Run | Yrd Mat Min Mat Machines Accessed 2 | . 1 . 1 Terminals 2 | . 1 . 1 Fabricators . | . . . . Repair Stations . | . . . . Recycling Units . | . . . . Scanalyzers . | . . . . Garrison Access . | . . . . Total Hacks 3 | . 1 . 2 Successful 1 | . 1 . . Failed 2 | . . . 2 Catastrophic 1 | . . . 1 Database Lockouts . | . . . . Manual . | . . . . Terminals 3 | . 1 . 2 Fabricators . | . . . . Repair Stations . | . . . . Recycling Units . | . . . . Scanalyzers . | . . . . Garrison Access . | . . . . Terminal Hacks 1 | . 1 . . Reprogram Traps 1 | . 1 . . Fabricator Hacks . | . . . . Repair Station Hacks . | . . . . Recycling Unit Hacks . | . . . . Scanalyzer . | . . . . Garrison Access Hacks . | . . . . Unauthorized Hacks . | . . . . Terminals . | . . . . Fabricators . | . . . . Repair Stations . | . . . . Recycling Units . | . . . . Scanalyzers . | . . . . Garrison Access . | . . . . Data Cores Recovered . | . . . . Used . | . . . . Hacking Detections 1 | . . . 1 Full Trace Events 1 | . . . 1 Feedback Events . | . . . . Feedback Blocked . | . . . . Robot Schematics Acquired . | . . . . Robots Built . | . . . . Authchips . | . . . . Time . | . . . . Total Robot Build Rating . | . . . . Part Schematics Acquired . | . . . . Parts Built . | . . . . Authchips . | . . . . Time . | . . . . Total Part Build Rating . | . . . . Parts Repaired . | . . . . Time . | . . . . Parts Recycled . | . . . . Recycled Matter . | . . . . Retrieved Matter . | . . . . Retrieved Components . | . . . . Parts Scanalyzed . | . . . . Part Schematics Acquired . | . . . . Parts Damaged . | . . . . Bothacking | -11 -10 -10 -9 ------------ Run | Yrd Mat Min Mat Used RIF Installer . | . . . . Robots Hacked . | . . . . Non-combat . | . . . . Combat . | . . . . Robot Hacks Applied . | . . . . Relay Couplers Released . | . . . . Fabnet Peak Effective % . | . . . . Robots Rewired . | . . . . Allies Hacked . | . . . . Hacks Repelled . | . . . . Allies | -11 -10 -10 -9 -------- Run | Yrd Mat Min Mat Total Allies 1 | . . 1 . Largest Group 1 | . . 1 . Highest-Rated Group 31 | . . 31 . Highest-Rated Ally 31 | . . 31 . Total Orders . | . . . . Ally Attacks 2 | . . 2 . Total Damage 41 | . . 41 . Kills 1 | . . 1 . Allies Corrupted . | . . . . Allies Melted . | . . . . Intel | -11 -10 -10 -9 ------- Run | Yrd Mat Min Mat Robot Analysis Total . | . . . . Derelict Logs Recovered 1 | . . 1 . Drone Launches . | . . . . Drone Recoveries . | . . . . Exploration | -11 -10 -10 -9 ------------- Run | Yrd Mat Min Mat Turns Passed 1682 | 71 594 1002 15 Spaces Moved 820 | 39 264 508 9 Core 4 | 4 . . . Treads 816 | 35 264 508 9 Legs . | . . . . Wheels . | . . . . Hover . | . . . . Flight . | . . . . Fastest Speed 50 | 50 160 160 160 Average Speed 172 | 148 160 180 160 Slowest Speed 240 | 160 160 240 160 Overloaded Moves . | . . . . Propulsion Burnouts . | . . . . Robots Hopped . | . . . . Cave-ins Triggered . | . . . . Exploration Rate (%) 36 | 4 48 91 3 Regions Visited 3 Branch Regions 1 Pre-discovered Areas . | . . . . Known Exits Taken . | . . . . Unknown Exits Taken 3 | 1 1 1 . Scrap Searched 1 | . . 1 . Spaces Dug . | . . . . Terrain Destroyed 55 | . . 55 . Melee . | . . . . Projectile . | . . . . AOE 55 | . . 55 . Terrain Rammed . | . . . . Walls Destroyed . | . . . . Machines Disabled . | . . . . Actions | -11 -10 -10 -9 --------- Run | Yrd Mat Min Mat Total 959 | 52 351 547 9 Wait 23 | . 23 . . Move 817 | 38 263 507 9 Hop . | . . . . Pick Up 20 | 8 11 1 . Fast Attach . | . . . . Attach 15 | 6 3 6 . Detach . | . . . . Swap . | . . . . Drop 3 | . 2 1 . Fire 81 | . 49 32 . Melee . | . . . . Ram . | . . . . Kick . | . . . . Crush . | . . . . Escape Stasis . | . . . . Rewire . | . . . . Trap . | . . . . Miscellaneous . | . . . . Route ------- -11/Scrapyard -10/Materials (discovered 2 exits: *Mat / [*Min]) -10/Mines (discovered 2 exits: *Mat / [*Sub]) -9/Materials History --------- Turn | Location | Event 13 | -11/Scrapyard | Discovered new exit (range 15) 72 | -11/Scrapyard | Entered Materials 311 | -10/Materials | Build established: Mutant 507 | -10/Materials | Discovered new exit (range 10) 603 | -10/Materials | Discovered new exit (range 16) 666 | -10/Materials | Entered Mines 700 | -10/Mines | Met a Derelict bent on vengeance 738 | -10/Mines | Discovered new exit (range 8) 976 | -10/Mines | Received a Mining Laser from a helpful Derelict 1219 | -10/Mines | Learned Materials trap positions 1234 | -10/Mines | Assembled infested the area 1239 | -10/Mines | Assisted by a Guerilla fighting off Assembled 1279 | -10/Mines | Core integrity fell below 50% 1304 | -10/Mines | Destroyed 16 combat bots 1309 | -10/Mines | Lost 4 parts (1p1n1u1w) 1614 | -10/Mines | Core integrity fell below 20% 1646 | -10/Mines | Lost 4 parts (1n3w) 1655 | -10/Mines | Discovered new exit (range 9) 1668 | -10/Mines | Entered Materials 1668 | -9/Materials | Evolved 2 slots: Propulsion x2 1669 | -9/Materials | Loaded intel: 16 trap records 1683 | -9/Materials | Self-destructed Last Messages --------------- (Burn). 01615_ K-01 Serf collects debris. 01615_ Med. Laser destroyed. 01615_ K-01 Serf destroyed. 01616_ The unstable cave ceiling collapses. 01616_ D-53 Grenadier destroyed. 01618_ The unstable cave ceiling collapses. 01627_ K-01 Serf collects debris. 01639_ 7AK&IH>0GQP/E1SKNQYABL>6SVOJMTJ N 01641_ Acquired 31 matter. 01643_ Acquired 8 matter. 01655_ EXIT=FOUND PARAMETERS=PROPULSION+2 LOCATION=UNKNOWN GOAL=ESCAPE Loading Materials trap records (x16)... 01683_ Connecting with Terminal... 01683_ Current location identified: Materials 01683_ ALERT: Suspicious activity at Terminal M009. Dispatching Investigation squad. Map ----- +----------------------------------------------------+ | ????????????????????????????????????? | | ????????????????????????????????????? | | ????????????????????????????????????? | | ????????????????????????????????????? | | ????????????????????????????????????? | | ????????????????????????????????????? | | ????????????????????????????????????? | | ????????????????????????????????????? | | ????????????????????????????????????? | | ????????????????????????????????????? | | ????????????????????????????????????? | | ????????????????????????????????????? | | ?^??????????????????????????????????? | | ?^??????????????????????????????????? | | ?^??????????????????????????????????? | | ????????????????????????????????????? | | ????????????????????????????????????? | | ????????????????????????????????????? | | ????????????????????????????????????? | | ????????????????????????????????????? | | ????????????????????????????????????? | | ????????????????????????????????????? | | ????????????????????????????????????? | | ????????????????????###########?????? | | ????????????????????# """T""" #?????? | | ????????????????????# @ #?????? | | ????????????????????# #?????? | | ????????????????????+ #?????? | | ????????????????????# #?????? | | ????????????????????# """ """ #?????? | | ????????????????????# """ """ #?????? | | ????????????????????# """ """ #?????? | | ??????????????# #######+#####?????? | | ??????????????# #??????? | | ??????????????# #??????? | | ??????????????# #??????? | | ??????????????####+###########??????? | | ????????????????????????????????????? | | ????????????????????????????????????? | | ????????????????????????????????????? | | ????????????????????????????????????? | | ????????????????????????????????????? | | ????????????????????????????????????? | | ????????????????????????????????????? | | ????????????????????????????????????? | | ????????????????????????????????????? | | ????????????????????????????????????? | | ????????????????????????????????????? | | ????????????????????????????????????? | | ????????????????????????????????????? | +----------------------------------------------------+ Best States ------------- Heat Dissipation 28 Energy Generation 10 Energy Capacity 250 Matter Stores 300 Matter Capacity 300 Sight Range 16 Terrain Scan Density 10 Evasion (%) 40 Targeting Accuracy 5 Recoil Reduction 2 Item Schematics ----------------- None Robot Schematics ------------------ None Fabricated ------------ Nothing Alien Tech Used ----------------- None Achievements -------------- None Challenges ------------ None Game ------ Seed UtilityRiotKinecellerator Manual? 0 Play Time 00:09:08 Cumulative 37.4 hours Start 2024.04.05 @ 00:10:51 End 2024.04.05 @ 00:20:03 Sessions 1 Manual Loads 0 Difficulty Rogue Special Mode None Game No. 51 Rogue 51 Adventurer 0 Explorer 0 Win Type - Total 1 Types 1/0/0/0/0/0/0/0/0 Lore% 21 Gallery% 26 Achievement% 27 Wizard Run 0 Options --------- Layout 1 ASCII 0 Keyboard 0 Movement Mouse Keybinds 0 Fullscreen 2 Font 32/Smallcaps Map View 50x40 Zoom Use 0% Tactical HUD 1 Map Filters NONE Filters NONE Steam 1 RUN: e24f9a2d-1828-4c28-84e6-6ad1d6479e65